[Event "Live Chess"]
[Site "Chess.com"]
[Date "2023.05.21"]
[Round "-"]
[White "Delacorta"]
[Black "Cimon"]
[Result "0-1"]
[WhiteElo "1413"]
[BlackElo "1841"]
[TimeControl "300"]
[EndTime "2:07:57 PDT"]
[Termination "Cimon won on time"]

1. d4 {[%clk 0:04:58]} 1... Nf6 {[%clk 0:04:58.6]} 2. Nf3 {[%clk 0:04:57.3]}
2... g6 {[%clk 0:04:57.5]} 3. e3 {[%clk 0:04:56.4]} 3... Bg7 {[%clk 0:04:56]} 4.
Be2 {[%clk 0:04:48.9]} 4... d6 {[%clk 0:04:54.6]} 5. Nfd2 {[%clk 0:04:38]} 5...
O-O {[%clk 0:04:52.5]} 6. g4 {[%clk 0:04:37.1]} 6... c5 {[%clk 0:04:43.5]} 7. c3
{[%clk 0:04:24]} 7... Nc6 {[%clk 0:04:36.9]} 8. h4 {[%clk 0:04:22.6]} 8... e5
{[%clk 0:04:14.6]} 9. d5 {[%clk 0:04:17.3]} 9... Ne7 {[%clk 0:04:09.1]} 10. h5
{[%clk 0:04:15.6]} 10... Nfxd5 {[%clk 0:04:01.7]} 11. hxg6 {[%clk 0:04:13]}
11... hxg6 {[%clk 0:03:59.5]} 12. Bc4 {[%clk 0:04:08.8]} 12... Nb6 {[%clk
0:03:56.3]} 13. Qf3 {[%clk 0:03:41.5]} 13... d5 {[%clk 0:03:49.1]} 14. Qh3
{[%clk 0:03:32.3]} 14... f6 {[%clk 0:03:45.2]} 15. Bb3 {[%clk 0:02:56.9]} 15...
Be6 {[%clk 0:03:24.9]} 16. e4 {[%clk 0:02:41.5]} 16... Qd7 {[%clk 0:03:15.4]}
17. exd5 {[%clk 0:02:26.5]} 17... Bxd5 {[%clk 0:03:09.7]} 18. Bxd5+ {[%clk
0:01:53.4]} 18... Nbxd5 {[%clk 0:02:49.3]} 19. Nb3 {[%clk 0:01:27.2]} 19... b6
{[%clk 0:02:30.5]} 20. Bh6 {[%clk 0:01:22.8]} 20... Nc6 {[%clk 0:02:22.2]} 21.
Bxg7 {[%clk 0:01:17.9]} 21... Qxg7 {[%clk 0:02:19.3]} 22. Qf3 {[%clk 0:01:09.8]}
22... e4 {[%clk 0:02:06.3]} 23. Qg3 {[%clk 0:00:56.2]} 23... Rad8 {[%clk
0:01:51.8]} 24. N1d2 {[%clk 0:00:51.8]} 24... e3 {[%clk 0:01:40.5]} 25. fxe3
{[%clk 0:00:48.1]} 25... Nxe3 {[%clk 0:01:37.9]} 26. Qxe3 {[%clk 0:00:46.8]}
26... Rfe8 {[%clk 0:01:36.1]} 27. Ne4 {[%clk 0:00:44.7]} 27... f5 {[%clk
0:01:35.1]} 28. gxf5 {[%clk 0:00:25.5]} 28... Qe7 {[%clk 0:01:07.3]} 29. Qh3
{[%clk 0:00:10.3]} 29... Qxe4+ {[%clk 0:01:04.3]} 30. Kf1 {[%clk 0:00:06.9]}
30... Qxf5+ {[%clk 0:00:56.9]} 31. Qxf5 {[%clk 0:00:04.9]} 31... gxf5 {[%clk
0:00:55.9]} 32. Rg1+ {[%clk 0:00:04]} 32... Kf7 {[%clk 0:00:54]} 33. Kf2 {[%clk
0:00:03.5]} 33... c4 {[%clk 0:00:49.3]} 34. Nd4 {[%clk 0:00:00.7]} 34... Nxd4
{[%clk 0:00:47.7]} 35. cxd4 {[%clk 0:00:00.6]} 35... Rxd4 {[%clk 0:00:46.6]} 0-1

[Event "Live Chess"]
[Site "Chess.com"]
[Date "2023.05.21"]
[Round "-"]
[White "PrinceCharming_1"]
[Black "WelshTiger"]
[Result "0-1"]
[WhiteElo "1622"]
[BlackElo "2350"]
[TimeControl "300"]
[EndTime "2:08:36 PDT"]
[Termination "WelshTiger won by resignation"]

1. e4 {[%clk 0:04:58.4]} 1... c5 {[%clk 0:04:56]} 2. Nf3 {[%clk 0:04:57.4]} 2...
d6 {[%clk 0:04:55.4]} 3. d4 {[%clk 0:04:56.6]} 3... cxd4 {[%clk 0:04:55.3]} 4.
Nxd4 {[%clk 0:04:56.5]} 4... Nf6 {[%clk 0:04:54.6]} 5. Nc3 {[%clk 0:04:56]} 5...
Nc6 {[%clk 0:04:54.2]} 6. Bg5 {[%clk 0:04:53]} 6... Bd7 {[%clk 0:04:52.9]} 7.
Qd2 {[%clk 0:04:52.4]} 7... Rc8 {[%clk 0:04:51.6]} 8. Bb5 {[%clk 0:04:50.2]}
8... a6 {[%clk 0:04:34.3]} 9. Nxc6 {[%clk 0:04:40.1]} 9... bxc6 {[%clk
0:04:34.2]} 10. Bxa6 {[%clk 0:04:39.2]} 10... Rb8 {[%clk 0:04:32.9]} 11. b3
{[%clk 0:04:30.6]} 11... Qa5 {[%clk 0:04:31.7]} 12. Bd3 {[%clk 0:04:25.9]} 12...
Be6 {[%clk 0:04:09.6]} 13. O-O {[%clk 0:04:23.4]} 13... Nd7 {[%clk 0:04:08]} 14.
Ne2 {[%clk 0:04:15.3]} 14... Qc7 {[%clk 0:03:57.2]} 15. Nf4 {[%clk 0:04:11.1]}
15... Nc5 {[%clk 0:03:56.3]} 16. Nxe6 {[%clk 0:03:57.2]} 16... Nxe6 {[%clk
0:03:55.3]} 17. Be3 {[%clk 0:03:57.1]} 17... g6 {[%clk 0:03:51]} 18. Rab1 {[%clk
0:03:51.3]} 18... Bg7 {[%clk 0:03:49.1]} 19. a4 {[%clk 0:03:50]} 19... O-O
{[%clk 0:03:47.5]} 20. Bc4 {[%clk 0:03:49.4]} 20... Nc5 {[%clk 0:03:35.7]} 21.
f3 {[%clk 0:03:44.7]} 21... Rfd8 {[%clk 0:03:29.9]} 22. Bd4 {[%clk 0:03:43.8]}
22... Bf8 {[%clk 0:03:22.3]} 23. h4 {[%clk 0:03:38.9]} 23... e5 {[%clk
0:03:18.3]} 24. Be3 {[%clk 0:03:33.1]} 24... d5 {[%clk 0:03:05.9]} 25. exd5
{[%clk 0:03:26.3]} 25... cxd5 {[%clk 0:03:04.9]} 26. Bb5 {[%clk 0:03:11.8]}
26... d4 {[%clk 0:03:01.6]} 27. Bh6 {[%clk 0:03:10.9]} 27... Ne6 {[%clk
0:02:52.7]} 28. Bxf8 {[%clk 0:03:05.8]} 28... Kxf8 {[%clk 0:02:51.7]} 29. Bc4
{[%clk 0:03:00.6]} 29... Nf4 {[%clk 0:02:50.3]} 30. g3 {[%clk 0:02:53.1]} 30...
Nh5 {[%clk 0:02:48.5]} 31. Kg2 {[%clk 0:02:45.2]} 31... e4 {[%clk 0:02:43.2]}
32. f4 {[%clk 0:02:44.5]} 32... e3 {[%clk 0:02:41.7]} 33. Qe2 {[%clk 0:02:43.2]}
33... Ng7 {[%clk 0:02:35.1]} 34. Rbd1 {[%clk 0:02:41.4]} 34... Nf5 {[%clk
0:02:34]} 35. Qf3 {[%clk 0:02:36.9]} 35... h5 {[%clk 0:02:31.2]} 36. Bd3 {[%clk
0:02:35.9]} 36... Ne7 {[%clk 0:02:29.5]} 37. Qe4 {[%clk 0:02:23.4]} 37... Rd5
{[%clk 0:02:21.9]} 38. f5 {[%clk 0:02:13.4]} 38... Re5 {[%clk 0:01:58.7]} 39.
Qf4 {[%clk 0:02:11.1]} 39... e2 {[%clk 0:01:54.6]} 40. Bxe2 {[%clk 0:02:09.1]}
40... Rxe2+ {[%clk 0:01:53.8]} 41. Rf2 {[%clk 0:02:07.2]} 41... Qxf4 {[%clk
0:01:52.3]} 42. gxf4 {[%clk 0:02:05.4]} 42... Rxf2+ {[%clk 0:01:51.2]} 43. Kxf2
{[%clk 0:02:05.3]} 43... Nxf5 {[%clk 0:01:50.7]} 44. Rh1 {[%clk 0:01:58.1]}
44... Rc8 {[%clk 0:01:48.1]} 0-1

[Event "Live Chess"]
[Site "Chess.com"]
[Date "2023.05.21"]
[Round "-"]
[White "ACx04"]
[Black "Crowded_House"]
[Result "0-1"]
[WhiteElo "414"]
[BlackElo "1662"]
[TimeControl "300"]
[EndTime "2:08:51 PDT"]
[Termination "Crowded_House won by checkmate"]

1. e4 {[%clk 0:04:58.1]} 1... e6 {[%clk 0:04:58.4]} 2. Bc4 {[%clk 0:04:55]} 2...
d5 {[%clk 0:04:57.5]} 3. exd5 {[%clk 0:04:53.9]} 3... exd5 {[%clk 0:04:56.8]} 4.
Bb3 {[%clk 0:04:52.9]} 4... c6 {[%clk 0:04:54.6]} 5. Nf3 {[%clk 0:04:51.6]} 5...
Bd6 {[%clk 0:04:53.2]} 6. O-O {[%clk 0:04:50.2]} 6... Ne7 {[%clk 0:04:52.8]} 7.
h3 {[%clk 0:04:47.7]} 7... O-O {[%clk 0:04:52]} 8. d3 {[%clk 0:04:44.5]} 8...
Nd7 {[%clk 0:04:45.1]} 9. g3 {[%clk 0:04:43]} 9... Nf6 {[%clk 0:04:40.4]} 10.
Be3 {[%clk 0:04:36.1]} 10... Bxh3 {[%clk 0:04:37.3]} 11. Re1 {[%clk 0:04:29.8]}
11... Re8 {[%clk 0:04:20.8]} 12. a3 {[%clk 0:04:21.3]} 12... Bg4 {[%clk
0:04:05]} 13. Nbd2 {[%clk 0:04:15.2]} 13... Nf5 {[%clk 0:04:03.1]} 14. c4 {[%clk
0:04:09.2]} 14... dxc4 {[%clk 0:03:49]} 15. Bxc4 {[%clk 0:04:07.7]} 15... Nxe3
{[%clk 0:03:47.8]} 16. fxe3 {[%clk 0:04:06.3]} 16... Bxg3 {[%clk 0:03:42.2]} 17.
Re2 {[%clk 0:04:01.2]} 17... b5 {[%clk 0:03:31.1]} 18. Bb3 {[%clk 0:03:52.6]}
18... Bxf3 {[%clk 0:03:18]} 19. Nxf3 {[%clk 0:03:50.6]} 19... Nd5 {[%clk
0:03:06.4]} 20. e4 {[%clk 0:03:35.1]} 20... Nf4 {[%clk 0:02:58]} 21. Rc2 {[%clk
0:03:26.2]} 21... Qxd3 {[%clk 0:02:46.1]} 22. Qxd3 {[%clk 0:03:24.5]} 22... Nxd3
{[%clk 0:02:44]} 23. Rxc6 {[%clk 0:03:23.3]} 23... Rxe4 {[%clk 0:02:32]} 24. Rc3
{[%clk 0:03:19.9]} 24... Nxb2 {[%clk 0:02:21.6]} 25. Bd5 {[%clk 0:03:13.4]}
25... Rg4 {[%clk 0:01:52.7]} 26. Bxa8 {[%clk 0:03:05.5]} 26... Be5+ {[%clk
0:01:48]} 27. Kf2 {[%clk 0:03:00.5]} 27... Bxc3 {[%clk 0:01:46.7]} 28. Rc1
{[%clk 0:02:55.1]} 28... Na4 {[%clk 0:01:42.4]} 29. Bc6 {[%clk 0:02:50.4]} 29...
a6 {[%clk 0:01:36.3]} 30. Rd1 {[%clk 0:02:44.6]} 30... g6 {[%clk 0:01:25.8]} 31.
Rd8+ {[%clk 0:02:40.7]} 31... Kg7 {[%clk 0:01:24.5]} 32. Ra8 {[%clk 0:02:28.5]}
32... Nc5 {[%clk 0:01:19.7]} 33. Ne5 {[%clk 0:02:16.6]} 33... Bxe5 {[%clk
0:01:18.1]} 34. Kf3 {[%clk 0:02:09.2]} 34... Ra4 {[%clk 0:01:16.3]} 35. Re8
{[%clk 0:02:00.7]} 35... Bf6 {[%clk 0:01:14.2]} 36. Kg3 {[%clk 0:01:34]} 36...
Rxa3+ {[%clk 0:01:13.3]} 37. Kg4 {[%clk 0:01:30.8]} 37... b4 {[%clk 0:01:10.1]}
38. Kf4 {[%clk 0:01:19.9]} 38... b3 {[%clk 0:01:09.2]} 39. Rb8 {[%clk
0:01:15.9]} 39... b2 {[%clk 0:01:03.3]} 40. Be4 {[%clk 0:01:09]} 40... Nxe4
{[%clk 0:00:59.2]} 41. Kxe4 {[%clk 0:01:08.1]} 41... Ra1 {[%clk 0:00:58.2]} 42.
Rxb2 {[%clk 0:01:05.5]} 42... Bxb2 {[%clk 0:00:54.4]} 43. Kd5 {[%clk 0:01:03.8]}
43... Bf6 {[%clk 0:00:53.5]} 44. Kc6 {[%clk 0:01:02.6]} 44... Rb1 {[%clk
0:00:53]} 45. Kd7 {[%clk 0:00:59]} 45... a5 {[%clk 0:00:52.2]} 46. Kc8 {[%clk
0:00:57.1]} 46... a4 {[%clk 0:00:51.9]} 47. Kc7 {[%clk 0:00:57]} 47... a3 {[%clk
0:00:51.3]} 48. Kc6 {[%clk 0:00:56.3]} 48... a2 {[%clk 0:00:50.9]} 49. Kc5
{[%clk 0:00:56.1]} 49... a1=Q {[%clk 0:00:49.2]} 50. Kd5 {[%clk 0:00:55.2]}
50... Rd1+ {[%clk 0:00:45.5]} 51. Kc4 {[%clk 0:00:53.5]} 51... Qc1+ {[%clk
0:00:44.6]} 52. Kb3 {[%clk 0:00:52.5]} 52... Rd3+ {[%clk 0:00:43]} 53. Kb4
{[%clk 0:00:51]} 53... Qf4+ {[%clk 0:00:41.5]} 54. Kc5 {[%clk 0:00:49.1]} 54...
Qd6+ {[%clk 0:00:35.1]} 55. Kc4 {[%clk 0:00:47.7]} 55... Rd4+ {[%clk 0:00:33.3]}
56. Kb5 {[%clk 0:00:46.2]} 56... Qe5+ {[%clk 0:00:31.1]} 57. Kc6 {[%clk
0:00:45.3]} 57... Rd6+ {[%clk 0:00:30.4]} 58. Kb7 {[%clk 0:00:43.2]} 58... Qe7+
{[%clk 0:00:29.5]} 59. Kc8 {[%clk 0:00:41.9]} 59... Rd8# {[%clk 0:00:29.3]} 0-1

[Event "Live Chess"]
[Site "Chess.com"]
[Date "2023.05.21"]
[Round "-"]
[White "whitedjohn"]
[Black "elizaveta_frundina"]
[Result "1-0"]
[WhiteElo "1648"]
[BlackElo "1564"]
[TimeControl "300"]
[EndTime "2:08:57 PDT"]
[Termination "whitedjohn won by resignation"]

1. e4 {[%clk 0:04:58.3]} 1... c5 {[%clk 0:04:58.6]} 2. Nf3 {[%clk 0:04:56.8]}
2... d6 {[%clk 0:04:55.3]} 3. d4 {[%clk 0:04:55.6]} 3... cxd4 {[%clk 0:04:54.3]}
4. Nxd4 {[%clk 0:04:54]} 4... Nf6 {[%clk 0:04:53.2]} 5. Nc3 {[%clk 0:04:52.8]}
5... a6 {[%clk 0:04:50.8]} 6. Bc4 {[%clk 0:04:51.4]} 6... e6 {[%clk 0:04:49.7]}
7. Bb3 {[%clk 0:04:50]} 7... Be7 {[%clk 0:04:48.8]} 8. O-O {[%clk 0:04:48.6]}
8... O-O {[%clk 0:04:47.8]} 9. f4 {[%clk 0:04:47.6]} 9... e5 {[%clk 0:04:38.7]}
10. Nf5 {[%clk 0:04:44.2]} 10... Bxf5 {[%clk 0:04:28.1]} 11. exf5 {[%clk
0:04:43]} 11... e4 {[%clk 0:04:23.7]} 12. Nd5 {[%clk 0:04:35.2]} 12... Nbd7
{[%clk 0:04:14.4]} 13. Nxe7+ {[%clk 0:04:32.1]} 13... Qxe7 {[%clk 0:04:11.5]}
14. g4 {[%clk 0:04:23.4]} 14... d5 {[%clk 0:03:51]} 15. g5 {[%clk 0:04:21.3]}
15... Qc5+ {[%clk 0:03:49.5]} 16. Kh1 {[%clk 0:04:19]} 16... Ne8 {[%clk
0:03:34.7]} 17. Qxd5 {[%clk 0:04:17.4]} 17... Qxd5 {[%clk 0:03:28.2]} 18. Bxd5
{[%clk 0:04:16]} 18... Nc5 {[%clk 0:03:22.4]} 19. Be3 {[%clk 0:04:14.6]} 19...
b6 {[%clk 0:03:12.4]} 20. Bxc5 {[%clk 0:04:12.7]} 20... bxc5 {[%clk 0:03:11.1]}
21. Bxa8 {[%clk 0:04:11.2]} 1-0

[Event "Live Chess"]
[Site "Chess.com"]
[Date "2023.05.21"]
[Round "-"]
[White "mliszewski"]
[Black "yeetpizza74"]
[Result "1-0"]
[WhiteElo "1840"]
[BlackElo "465"]
[TimeControl "300"]
[EndTime "2:09:01 PDT"]
[Termination "mliszewski won by checkmate"]

1. d4 {[%clk 0:04:57.1]} 1... e5 {[%clk 0:04:55]} 2. dxe5 {[%clk 0:04:54.8]}
2... Nc6 {[%clk 0:04:53.6]} 3. Nf3 {[%clk 0:04:49.4]} 3... Qe7 {[%clk
0:04:52.2]} 4. Bf4 {[%clk 0:04:48.1]} 4... Qb4+ {[%clk 0:04:50.5]} 5. Bd2 {[%clk
0:04:46.7]} 5... Qxb2 {[%clk 0:04:48.9]} 6. Nc3 {[%clk 0:04:45.1]} 6... Bb4
{[%clk 0:04:47.2]} 7. Rb1 {[%clk 0:04:44.7]} 7... Qa3 {[%clk 0:04:42.7]} 8. Nd5
{[%clk 0:04:43.1]} 8... Bxd2+ {[%clk 0:04:38.5]} 9. Qxd2 {[%clk 0:04:40.7]} 9...
Qxa2 {[%clk 0:04:34.1]} 10. Rb3 {[%clk 0:04:27.1]} 10... Qa1+ {[%clk 0:04:10]}
11. Qd1 {[%clk 0:04:25]} 11... Qa5+ {[%clk 0:04:03.2]} 12. c3 {[%clk 0:04:19.1]}
12... Qa4 {[%clk 0:03:57.7]} 13. Nxc7+ {[%clk 0:04:12]} 13... Kf8 {[%clk
0:03:47.3]} 14. Nxa8 {[%clk 0:04:03.8]} 14... f6 {[%clk 0:03:40]} 15. e4 {[%clk
0:03:46.2]} 15... Qa5 {[%clk 0:03:31.7]} 16. Bc4 {[%clk 0:03:30.5]} 16... Nge7
{[%clk 0:03:25.9]} 17. exf6 {[%clk 0:03:27.6]} 17... gxf6 {[%clk 0:03:23.6]} 18.
O-O {[%clk 0:03:26.5]} 18... f5 {[%clk 0:03:16.3]} 19. Qd6 {[%clk 0:03:21.7]}
19... fxe4 {[%clk 0:02:37.3]} 20. Qf6+ {[%clk 0:03:20.1]} 20... Ke8 {[%clk
0:02:28.2]} 21. Qxh8+ {[%clk 0:03:14]} 21... Ng8 {[%clk 0:02:24.2]} 22. Qxg8+
{[%clk 0:03:13.1]} 22... Ke7 {[%clk 0:02:22.9]} 23. Qf7+ {[%clk 0:03:09.5]}
23... Kd6 {[%clk 0:02:21.1]} 24. Qf8+ {[%clk 0:03:01.5]} 24... Ne7 {[%clk
0:01:50.4]} 25. Qf6+ {[%clk 0:02:50.9]} 25... Kc5 {[%clk 0:01:46.9]} 26. Rb5+
{[%clk 0:02:49.1]} 26... Kxc4 {[%clk 0:01:43.9]} 27. Rxa5 {[%clk 0:02:47.3]}
27... Kb3 {[%clk 0:01:41.6]} 28. Rb1+ {[%clk 0:02:41.6]} 28... Kc2 {[%clk
0:01:39.2]} 29. Nd2 {[%clk 0:02:27.1]} 29... Kxd2 {[%clk 0:01:30]} 30. Qd4+
{[%clk 0:02:26.4]} 30... Ke2 {[%clk 0:01:25]} 31. Ra2# {[%clk 0:02:24.9]} 1-0

[Event "Live Chess"]
[Site "Chess.com"]
[Date "2023.05.21"]
[Round "-"]
[White "smoggyrabbit"]
[Black "Biranidun"]
[Result "0-1"]
[WhiteElo "1708"]
[BlackElo "2551"]
[TimeControl "300"]
[EndTime "2:09:08 PDT"]
[Termination "Biranidun won by resignation"]

1. d4 {[%clk 0:04:59]} 1... Nf6 {[%clk 0:04:59.1]} 2. Nf3 {[%clk 0:04:57.8]}
2... g6 {[%clk 0:04:58.6]} 3. e3 {[%clk 0:04:56.3]} 3... Bg7 {[%clk 0:04:58.2]}
4. Be2 {[%clk 0:04:55.6]} 4... O-O {[%clk 0:04:58.1]} 5. O-O {[%clk 0:04:54.5]}
5... c5 {[%clk 0:04:57.2]} 6. b3 {[%clk 0:04:29.4]} 6... cxd4 {[%clk 0:04:56.1]}
7. exd4 {[%clk 0:04:28.2]} 7... d5 {[%clk 0:04:55.6]} 8. Bb2 {[%clk 0:04:26.8]}
8... Nc6 {[%clk 0:04:55.3]} 9. c4 {[%clk 0:04:22.9]} 9... Bf5 {[%clk 0:04:51]}
10. Nc3 {[%clk 0:04:05.8]} 10... Rc8 {[%clk 0:04:46.1]} 11. c5 {[%clk
0:03:46.7]} 11... Ne4 {[%clk 0:04:43.4]} 12. Nxe4 {[%clk 0:03:32.1]} 12... dxe4
{[%clk 0:04:42.5]} 13. Ne5 {[%clk 0:03:23.8]} 13... Nxe5 {[%clk 0:04:41.1]} 14.
dxe5 {[%clk 0:03:22.3]} 14... Rxc5 {[%clk 0:04:40.3]} 15. f4 {[%clk 0:03:09.6]}
15... exf3 {[%clk 0:04:32.3]} 16. Bxf3 {[%clk 0:03:06.4]} 16... Bxe5 {[%clk
0:04:26.4]} 17. Bxe5 {[%clk 0:03:00.6]} 17... Rxe5 {[%clk 0:04:26.3]} 18. Bxb7
{[%clk 0:02:49.6]} 18... Qb6+ {[%clk 0:04:24.9]} 19. Kh1 {[%clk 0:02:42.1]}
19... Qxb7 {[%clk 0:04:24]} 20. Qd4 {[%clk 0:02:39.2]} 20... Re2 {[%clk
0:04:21.7]} 21. Rf2 {[%clk 0:02:19.9]} 21... e5 {[%clk 0:04:19.6]} 22. Qc5
{[%clk 0:02:13.2]} 22... Rxf2 {[%clk 0:04:18.6]} 23. Qxf2 {[%clk 0:02:12.4]}
23... Rc8 {[%clk 0:04:18.4]} 24. Qf3 {[%clk 0:01:44]} 24... Qxf3 {[%clk
0:04:16]} 25. gxf3 {[%clk 0:01:43.1]} 25... Rc2 {[%clk 0:04:13.3]} 26. Re1
{[%clk 0:01:40.9]} 26... Rxa2 {[%clk 0:04:10.3]} 27. Rxe5 {[%clk 0:01:39.8]}
27... Be6 {[%clk 0:04:09]} 28. Rb5 {[%clk 0:01:36.8]} 28... Rb2 {[%clk
0:04:06.4]} 29. Rb7 {[%clk 0:01:32.8]} 29... Rxb3 {[%clk 0:04:04]} 30. Rxa7
{[%clk 0:01:31]} 30... Rxf3 {[%clk 0:04:03]} 0-1

[Event "Live Chess"]
[Site "Chess.com"]
[Date "2023.05.21"]
[Round "-"]
[White "profpirate4"]
[Black "jimwad"]
[Result "1-0"]
[WhiteElo "1284"]
[BlackElo "1220"]
[TimeControl "300"]
[EndTime "2:09:22 PDT"]
[Termination "profpirate4 won by resignation"]

1. d4 {[%clk 0:04:57.7]} 1... d5 {[%clk 0:04:58.7]} 2. c4 {[%clk 0:04:52.5]}
2... c6 {[%clk 0:04:57.1]} 3. Nc3 {[%clk 0:04:51.3]} 3... Nf6 {[%clk 0:04:55.8]}
4. cxd5 {[%clk 0:04:49.7]} 4... cxd5 {[%clk 0:04:54.7]} 5. e3 {[%clk 0:04:47.8]}
5... e6 {[%clk 0:04:53.1]} 6. Bd3 {[%clk 0:04:46]} 6... Bb4 {[%clk 0:04:51.4]}
7. Qc2 {[%clk 0:04:45]} 7... h6 {[%clk 0:04:43.1]} 8. Bd2 {[%clk 0:04:40.6]}
8... Nc6 {[%clk 0:04:40.7]} 9. Nge2 {[%clk 0:04:34.6]} 9... O-O {[%clk
0:04:37.1]} 10. O-O {[%clk 0:04:31.4]} 10... Bd6 {[%clk 0:04:33.7]} 11. f3
{[%clk 0:04:28.4]} 11... Qc7 {[%clk 0:04:32.2]} 12. Ng3 {[%clk 0:04:19.7]} 12...
Bxg3 {[%clk 0:04:30.6]} 13. hxg3 {[%clk 0:04:18.5]} 13... Qxg3 {[%clk
0:04:29.4]} 14. Be1 {[%clk 0:04:10.6]} 14... Qg5 {[%clk 0:04:24.8]} 15. Bf2
{[%clk 0:03:57.9]} 15... e5 {[%clk 0:04:15.6]} 16. dxe5 {[%clk 0:03:51.9]} 16...
Nxe5 {[%clk 0:04:14.1]} 17. f4 {[%clk 0:03:48]} 17... Qg4 {[%clk 0:04:04.9]} 18.
fxe5 {[%clk 0:03:45.6]} 18... Nh5 {[%clk 0:03:58.8]} 19. Be2 {[%clk 0:03:40.7]}
19... Qg5 {[%clk 0:03:56.2]} 20. Nxd5 {[%clk 0:03:18.1]} 20... Qxe5 {[%clk
0:03:48.1]} 21. Bf3 {[%clk 0:03:03.8]} 21... Ng3 {[%clk 0:03:44.3]} 22. Rfd1
{[%clk 0:02:43.8]} 22... Qg5 {[%clk 0:03:36.4]} 23. Rd4 {[%clk 0:02:33.5]} 23...
Be6 {[%clk 0:03:26]} 24. Rad1 {[%clk 0:02:16.6]} 24... Rac8 {[%clk 0:03:22.3]}
25. Qa4 {[%clk 0:02:03]} 25... Nf5 {[%clk 0:03:18]} 26. Rg4 {[%clk 0:01:59.3]}
26... Qd8 {[%clk 0:03:02.7]} 27. e4 {[%clk 0:01:29.4]} 27... Nd6 {[%clk
0:02:53.3]} 28. Bh4 {[%clk 0:01:16.7]} 28... Qe8 {[%clk 0:02:31.1]} 29. Nf6+
{[%clk 0:01:07.4]} 1-0

[Event "Live Chess"]
[Site "Chess.com"]
[Date "2023.05.21"]
[Round "-"]
[White "MJMykh"]
[Black "Woodpusher500"]
[Result "1-0"]
[WhiteElo "1166"]
[BlackElo "1014"]
[TimeControl "300"]
[EndTime "2:09:35 PDT"]
[Termination "MJMykh won on time"]

1. e4 {[%clk 0:04:57.6]} 1... e5 {[%clk 0:04:57.7]} 2. Nf3 {[%clk 0:04:56.2]}
2... Nc6 {[%clk 0:04:53.3]} 3. Nc3 {[%clk 0:04:55.1]} 3... Nf6 {[%clk
0:04:45.8]} 4. Bc4 {[%clk 0:04:52]} 4... d6 {[%clk 0:04:22.9]} 5. h3 {[%clk
0:04:40.3]} 5... Nxe4 {[%clk 0:04:17.6]} 6. Nxe4 {[%clk 0:04:39]} 6... d5 {[%clk
0:04:15.2]} 7. Bd3 {[%clk 0:04:38.1]} 7... dxe4 {[%clk 0:04:09.7]} 8. Bxe4
{[%clk 0:04:19.1]} 8... Bc5 {[%clk 0:03:59.2]} 9. Bxc6+ {[%clk 0:04:17.5]} 9...
bxc6 {[%clk 0:03:55.4]} 10. O-O {[%clk 0:04:16.9]} 10... O-O {[%clk 0:03:48.3]}
11. Nxe5 {[%clk 0:04:15.4]} 11... Qd5 {[%clk 0:03:33.3]} 12. Nd3 {[%clk
0:04:12.4]} 12... Bd6 {[%clk 0:03:27.3]} 13. b3 {[%clk 0:03:58.7]} 13... Bb7
{[%clk 0:03:23.1]} 14. c4 {[%clk 0:03:55.6]} 14... Qg5 {[%clk 0:03:08]} 15. f4
{[%clk 0:03:24.7]} 15... Qg6 {[%clk 0:02:55.3]} 16. f5 {[%clk 0:03:19.6]} 16...
Qg5 {[%clk 0:02:49.6]} 17. c5 {[%clk 0:03:17]} 17... Be7 {[%clk 0:02:34.5]} 18.
b4 {[%clk 0:03:11.8]} 18... Rad8 {[%clk 0:02:31.3]} 19. Nb2 {[%clk 0:03:03.1]}
19... a5 {[%clk 0:02:24]} 20. bxa5 {[%clk 0:02:58.3]} 20... Rd5 {[%clk
0:02:14.9]} 21. d4 {[%clk 0:02:53.1]} 21... Bxc5 {[%clk 0:02:06.1]} 22. Bxg5
{[%clk 0:02:51.2]} 22... Rxd4 {[%clk 0:02:02.2]} 23. Qh5 {[%clk 0:02:33.4]}
23... Rh4+ {[%clk 0:01:55.1]} 24. Kh2 {[%clk 0:02:32.4]} 24... Rxh5 {[%clk
0:01:53.2]} 25. g4 {[%clk 0:02:25.7]} 25... Bd6+ {[%clk 0:01:47.8]} 26. Kg2
{[%clk 0:02:23.5]} 26... Rxg5 {[%clk 0:01:45.7]} 27. Nc4 {[%clk 0:02:20]} 27...
c5+ {[%clk 0:01:34.9]} 28. Kf2 {[%clk 0:02:17.7]} 28... Be7 {[%clk 0:01:16.3]}
29. Ne5 {[%clk 0:02:05.2]} 29... h5 {[%clk 0:01:09.2]} 30. h4 {[%clk 0:01:57.5]}
30... Rxg4 {[%clk 0:00:54.5]} 31. Nxg4 {[%clk 0:01:56.3]} 31... Bxh4+ {[%clk
0:00:52.6]} 32. Ke3 {[%clk 0:01:52.8]} 32... Re8+ {[%clk 0:00:50]} 33. Kf4
{[%clk 0:01:50.5]} 33... Re4+ {[%clk 0:00:42.4]} 34. Kf3 {[%clk 0:01:47.5]}
34... Rxg4+ {[%clk 0:00:35.1]} 35. Ke3 {[%clk 0:01:43.3]} 35... Bg3 {[%clk
0:00:21.7]} 36. Rab1 {[%clk 0:01:32.7]} 36... Bc6 {[%clk 0:00:18.2]} 37. Rb8+
{[%clk 0:01:30]} 37... Kh7 {[%clk 0:00:12.7]} 38. a6 {[%clk 0:01:28.9]} 38... h4
{[%clk 0:00:10.1]} 39. a7 {[%clk 0:01:27.2]} 39... h3 {[%clk 0:00:08.7]} 40.
a8=Q {[%clk 0:01:20.9]} 40... Bxa8 {[%clk 0:00:06.7]} 41. Rxa8 {[%clk
0:01:19.9]} 41... h2 {[%clk 0:00:05.1]} 42. Rh1 {[%clk 0:01:19.1]} 42... Bd6
{[%clk 0:00:02.9]} 43. Kf3 {[%clk 0:01:14.2]} 43... Rg1 {[%clk 0:00:01.5]} 44.
Rxh2+ {[%clk 0:01:10.1]} 1-0